Cogmind - Beta 15 @@@ ROGUE MODE // 2025.06.04 @ 20:45:48 Player: Mas5akr Result: Destroyed by G-47 Trooper with Particle Gun Performance ------------- Evolutions (2) 1000 Regions Visited (5) 1000 Robots Destroyed (74) 370 Value Destroyed (1935) 1935 Prototype IDs (23) 460 Alien Tech Used (0) 0 Bonus (565) 565 TOTAL SCORE: 5330 Bonus ------- High Alert Combat Kills 144 Follower Combat Kills 121 Aligned with FarCom 300 Cogmind --------- Core Integrity 0/550 Matter 276/300 Energy 99/100 System Corruption 0% Temperature Cool (9) Movement Core (50) Location -8/Materials Parts ------- > --- POWER (1) -------- (None) > --- PROPULSION (3) --- (None) > --- UTILITY (5) ------ Melee Analysis Suite Hacking Suite > --- WEAPON (2) ------- (None) > --- INVENTORY (5) ---- Small Storage Unit Datajack Peak State ------------ > --- POWER ------------ Light Nuclear Core > --- PROPULSION ------- Light Treads > --- UTILITY ---------- Small Storage Unit Melee Analysis Suite Core Shielding Hacking Suite Hacking Suite > --- WEAPON ----------- YOLO Cannon > --- INVENTORY -------- Light Nuclear Core Small Storage Unit Arc Projector Datajack Hammer [Rating: 36] Favorites ----------- Power Ion Engine Engine Ion Engine Power Core Light Nuclear Core Propulsion Aluminum Leg Treads Light Treads Leg Aluminum Leg Utility Small Storage Unit Storage Small Storage Unit Processor Melee Analysis Suite Hackware Hacking Suite Protection Core Shielding Weapon Small Laser Energy Gun Small Laser Energy Cannon YOLO Cannon Ballistic Gun Shotgun Launcher Grenade Launcher Impact Weapon Hammer Build | -11 -10 -10 -10 -9 -8 ------- Run | Yrd Mat Min Exi Min Mat Slots Evolved 4 | . . . . . 4 Power . | . . . . . . Propulsion 1 | . . . . . 1 Utility 3 | . . . . . 3 Weapon . | . . . . . . Parts Attached 45 | 6 3 3 1 . 32 Power 7 | 1 . . 1 . 5 Engine 5 | 1 . . 1 . 3 Core 2 | . . . . . 2 Reactor . | . . . . . . Propulsion 14 | 2 1 2 . . 9 Treads 6 | . . 2 . . 4 Leg 8 | 2 1 . . . 5 Wheel . | . . . . . . Hover . | . . . . . . Flight . | . . . . . . Utility 8 | 1 1 . . . 6 Device . | . . . . . . Storage 2 | 1 . . . . 1 Processor 1 | . . . . . 1 Hackware 3 | . 1 . . . 2 Protection 2 | . . . . . 2 Artifact . | . . . . . . Weapon 16 | 2 1 1 . . 12 Energy Gun 9 | 2 1 . . . 6 Energy Cannon 1 | . . . . . 1 Ballistic Gun 2 | . . . . . 2 Ballistic Cannon . | . . . . . . Launcher 3 | . . 1 . . 2 Special Weapon . | . . . . . . Impact Weapon 1 | . . . . . 1 Slashing Weapon . | . . . . . . Piercing Weapon . | . . . . . . Special Melee Weapon . | . . . . . . Unidentified Prototypes . | . . . . . . Parts Lost 25 | . 1 1 . . 23 Power 3 | . . . . . 3 Propulsion 8 | . . . . . 8 Utility 5 | . . . . . 5 Weapon 9 | . 1 1 . . 7 Highest Loss Streak 8 | . 1 1 . . 8 To Critical Strikes . | . . . . . . Average Backups 6 | 2 5 7 5 6 6 Power . | 1 1 1 . . . Propulsion 2 | . 1 4 4 4 . Utility . | . . . . . . Weapon 2 | 1 2 1 1 2 3 Tool/Special . | . . . . . . Unused Backups 5 | . . 1 . . 4 Power . | . . . . . . Propulsion 4 | . . 1 . . 3 Utility . | . . . . . . Weapon . | . . . . . . Tool/Special 1 | . . . . . 1 Average Slot Usage (%) 89 | . 86 100 100 100 82 Engine 10 | . 14 14 14 14 5 Core 1 | . . . . . 2 Treads 11 | . . 2 28 28 9 Leg 13 | . 28 25 . . 10 Storage 11 | . 14 14 14 14 8 Processor 4 | . . . . . 8 Hackware 10 | . 1 14 14 14 11 Protection 3 | . . . . . 7 Energy Gun 16 | . 27 25 14 14 11 Launcher 4 | . . 2 14 14 1 Impact Weapon 1 | . . . . . 2 Peak Build Rating 36 | 6 9 9 11 11 36 Average Rating 14 | 3 6 8 10 11 21 On Entrance 7 | . 6 9 9 11 11 Naked Turns . | . . . . . . Heaviest Build 23 | 14 14 14 14 14 23 Greatest Support 42 | 20 20 40 40 40 42 Greatest Overweight (x) 6 | . . . . . 6 Average Overweight (x) . | . . . . . . Largest Inventory Capacity 8 | 8 8 8 8 8 8 Average Capacity 7 | 7 8 8 8 8 7 Most Carried 8 | 6 8 8 7 7 8 Average Carried 6 | 2 5 7 6 7 7 Final Capacity 8 | 8 8 8 8 8 5 Final Carried 8 | 2 8 6 7 7 2 Class Distribution -------------------- 68% | Mutant 26% | Scavenger-Mutant 4% | Hacker-Mutant Dominant Class ---------------- Mutant | -10/Materials Mutant | -10/Mines Mutant | -10/Exiles Mutant | -9/Mines Scavenger-Mutant | -8/Materials Resources | -11 -10 -10 -10 -9 -8 ----------- Run | Yrd Mat Min Exi Min Mat Matter Collected 1243 | 208 82 54 . 30 869 Remotely . | . . . . . . Salvage Created 2109 | . 395 165 . 65 1484 Parts 116 | . 23 7 . 4 82 Haulers Intercepted 4 | . 1 . . . 3 Recyclers Shooed 1 | . . . . . 1 Parts Field Recycled . | . . . . . . Retrieved Matter . | . . . . . . Parts Self-Destructed . | . . . . . . Prevented . | . . . . . . Kills | -11 -10 -10 -10 -9 -8 ------- Run | Yrd Mat Min Exi Min Mat Combat Hostiles Destroyed 51 | . 6 6 . 3 36 Melee 3 | . . . . . 3 Guns 23 | . 6 4 . 3 10 Cannons 2 | . . . . . 2 AOE 19 | . . 2 . . 17 Classes Destroyed 10 | . 4 1 . . 5 Worker 6 | . . . . . 6 Builder 3 | . . . . . 3 Hauler 4 | . 1 . . . 3 Recycler 2 | . . . . . 2 Operator 5 | . 2 . . . 3 Watcher 3 | . 2 . . . 1 Swarmer 17 | . . 6 . 2 9 Grunt 24 | . 6 . . 1 17 Duelist 4 | . . . . . 4 Sentry 6 | . . . . . 6 Best Kill Streak 15 | . 2 3 . 2 15 Combat Bots Only 8 | . 2 3 . 2 8 Max Kills in Single Turn 4 | . 1 2 . 1 4 Gunslinging . | . . . . . . Exploded 2 | . . 2 . . 2 Melee 1 | . . . . . 1 Uniques/NPCs Destroyed . | . . . . . . Combat | -11 -10 -10 -10 -9 -8 -------- Run | Yrd Mat Min Exi Min Mat Hostile Shots Fired 284 | . 38 18 . 16 212 Missed 66 | . 7 4 . 3 52 Hits 218 | . 31 14 . 13 160 Melee 20 | . . . . . 20 Projectile 198 | . 31 14 . 13 140 AOE 1 | . . . . . 1 Critical Strikes 11 | . 1 . . . 10 Actively Blocked 2 | . . . . . 2 Damage Taken 3483 | . 378 156 . 111 2838 Core 722 | . 118 24 . 18 562 Absorbed by Shields . | . . . . . . Redirected to Shielding 82 | . . . . . 82 Regen/Repaired (Parts) 37 | . . . . . 37 Core Remaining (%) 68 | 100 . . . 36 . Volleys Fired 143 | . 35 14 . 8 86 Largest 2 | . 2 2 . 2 2 Hottest 110 | . 90 90 . 70 110 Shots Fired 255 | . 69 27 . 11 148 Gun 214 | . 69 26 . 9 110 Cannon 6 | . . . . . 6 Launcher 35 | . . 1 . 2 32 Special . | . . . . . . Kinetic 31 | . . . . . 31 Thermal 125 | . 53 26 . 9 37 Explosive 35 | . . 1 . 2 32 Electromagnetic 64 | . 16 . . . 48 Robot Hit Streak 16 | . 9 6 . 4 16 Robot Miss Streak 3 | . 3 3 . 1 3 Penetration Max . | . . . . . . Secondary Targets 3 | . 1 1 . . 1 Max Gunslinging Chain 1 | . 1 1 . . 1 Shots Hit Robots 187 | . 40 16 . 6 125 Core Hits 117 | . 20 9 . 6 82 Critical Kills 1 | . . . . . 1 Critical Parts Destroyed 7 | . . . . . 7 Critical Strikes 12 | . 3 1 . . 8 Burn 4 | . 3 1 . . . Smash 8 | . . . . . 8 Melee Attacks 33 | . . . . . 33 Impact 33 | . . . . . 33 Slashing . | . . . . . . Piercing . | . . . . . . Sneak Attacks 3 | . . . . . 3 Combat Hostiles . | . . . . . . Follow-up Attacks . | . . . . . . Damage Inflicted 6257 | . 523 319 . 168 5247 Guns 1953 | . 516 176 . 89 1172 Cannons 340 | . . . . . 340 Explosions 3175 | . . 139 . 79 2957 Melee 773 | . . . . . 773 Ramming 16 | . 7 4 . . 5 Kinetic 396 | . . . . . 396 Thermal 1973 | . 402 176 . 89 1306 Explosive 2473 | . . 139 . 79 2255 Electromagnetic 626 | . 114 . . . 512 Impact 773 | . . . . . 773 Slashing . | . . . . . . Piercing . | . . . . . . Highest Corruption 1 | . 1 1 1 1 . Average Corruption 1 | . 1 1 1 1 . Corruption Purged . | . . . . . . Corruption Blocked . | . . . . . . Effects 18 | . 5 6 4 3 . Message Errors 6 | . 2 1 2 1 . Matter Fused 3 | . . 3 . . . Energy Discharges 4 | . 1 2 . 1 . Data Loss (minor) 3 | . 2 . 1 . . Data Loss (major) 1 | . . . 1 . . Misfires 1 | . . . . 1 . Overload Shots . | . . . . . . Overflow Damage 599 | . . 7 . . 592 Projectiles 123 | . . . . . 123 Explosions 173 | . . 7 . . 166 Melee 303 | . . . . . 303 Knockbacks 2 | . . . . . 2 Impact 2 | . . . . . 2 Kinetic . | . . . . . . Secondary . | . . . . . . Self-Inflicted Damage 381 | . . 39 . . 342 Shots 13 | . . 1 . . 12 Rammed 1 | . . . . . 1 Targets Rammed 7 | . 3 1 . . 3 Kicked 6 | . 3 1 . . 2 Crushed . | . . . . . . Highest Temperature 274 | . 274 150 . 24 255 Average Temperature 64 | . 77 61 . 12 58 Received Heat Transfer 981 | . 231 . . 12 738 Effects 3 | . 3 . . . . Energy Bleed 1 | . 1 . . . . Interference 2 | . 2 . . . . Siege Activations . | . . . . . . Martial Activations . | . . . . . . Shielding Activations . | . . . . . . Robots Disrupted . | . . . . . . Combat Hostiles . | . . . . . . Robots Corrupted 8 | . . . . . 8 Combat Hostiles 4 | . . . . . 4 Parts Fried 17 | . . . . . 17 Impact Corruptions 14 | . . . . . 14 Robots Melted . | . . . . . . Combat Hostiles . | . . . . . . Parts Melted 9 | . 4 4 . 1 . Heat Transferred 3397 | . 1335 533 . 200 1329 Parts Sabotaged . | . . . . . . Parts Stolen . | . . . . . . Parts Stripped . | . . . . . . Power Chain Reactions . | . . . . . . Alert | -11 -10 -10 -10 -9 -8 ------- Run | Yrd Mat Min Exi Min Mat Maximum Alert Level 2 | . . . . . 2 Low Security (%) 74 | 100 100 100 . 100 53 Level 1 10 | . . . . . 18 Level 2 14 | . . . . . 27 Level 3 . | . . . . . . Level 4 . | . . . . . . Level 5 . | . . . . . . High Security . | . . . . . . Max Security . | . . . . . . Peak Influence 686 | . 68 142 . 83 686 Initial 29 | . . 15 . . 29 Average 132 | . 14 31 . 16 228 Influence Increases 1990 | . 208 223 . 163 1396 Destroy 0b10 Robot/C 1160 | . 120 160 . 120 760 Destroy 0b10 Robot/NC 130 | . 25 15 . . 90 Destroy Leader 254 | . 36 20 . 20 178 Allied During Kill 33 | . . 17 . 9 7 Successful Hack 46 | . 27 . . . 19 Disable Machine 105 | . . . . . 105 Destroy Structure 217 | . . 11 . 14 192 Lose Combat Pursuer 45 | . . . . . 45 Influence Decreases 1306 | . 167 162 102 88 787 Entered New Map 174 | . . 26 102 . 46 Time Decay 822 | . 167 126 . 48 481 Lost Part 230 | . . 10 . . 220 Lost Ally 80 | . . . . 40 40 Squads Dispatched 12 | . 2 . . . 10 Investigation 1 | . . . . . 1 Extermination . | . . . . . . Reinforcement 6 | . 2 . . . 4 Assault 2 | . . . . . 2 Garrison 3 | . . . . . 3 Intercept . | . . . . . . Searches Triggered . | . . . . . . Construction Impeded 1 | . . . . . 1 Haulers Reinforced . | . . . . . . Active Scanning Responses . | . . . . . . Cargo Convoy Interrupts . | . . . . . . Stealth | -11 -10 -10 -10 -9 -8 --------- Run | Yrd Mat Min Exi Min Mat Distress Signals 3 | . . . . . 3 Communications Jammed . | . . . . . . Distress Signals . | . . . . . . Times Spotted 81 | . 11 6 . 5 59 Peak Tracking Total 6 | . 2 3 . 2 6 Tactical Retreats 2 | . . . . . 2 Traps | -11 -10 -10 -10 -9 -8 ------- Run | Yrd Mat Min Exi Min Mat Traps Triggered 3 | . 1 . . . 2 Indirectly . | . . . . . . Trap Hack Attempts . | . . . . . . Triggered . | . . . . . . Disarmed . | . . . . . . Reprogrammed . | . . . . . . Reused . | . . . . . . Traps Extracted . | . . . . . . Installed . | . . . . . . Triggered . | . . . . . . Machines | -11 -10 -10 -10 -9 -8 ---------- Run | Yrd Mat Min Exi Min Mat Machines Disabled 7 | . . . . . 7 Max in Single Turn 2 | . . . . . 2 Machines Repaired . | . . . . . . Machines Dismantled . | . . . . . . Machines Sabotaged . | . . . . . . Overloaded Fab Kills . | . . . . . . Hacking | -11 -10 -10 -10 -9 -8 --------- Run | Yrd Mat Min Exi Min Mat Machines Accessed 15 | . 4 1 2 . 8 Terminals 10 | . 4 1 . . 5 Fabricators . | . . . . . . Repair Stations 2 | . . . . . 2 Recycling Units . | . . . . . . Scanalyzers . | . . . . . . Garrison Access 1 | . . . . . 1 Total Hacks 44 | . 11 3 8 . 22 Successful 24 | . 5 . 8 . 11 Failed 20 | . 6 3 . . 11 Catastrophic 5 | . 3 . . . 2 Database Lockouts . | . . . . . . Manual 27 | . 8 3 1 . 15 Terminals 30 | . 11 3 . . 16 Fabricators . | . . . . . . Repair Stations 4 | . . . . . 4 Recycling Units . | . . . . . . Scanalyzers . | . . . . . . Garrison Access 2 | . . . . . 2 Terminal Hacks 18 | . 4 . 8 . 6 Record 7 | . . . 7 . . Branch Access Points 1 | . 1 . . . . Terminal Index 3 | . 1 . . . 2 Scanalyzer Index 1 | . 1 . . . . Locate Traps 1 | . 1 . . . . Surveillance Status 1 | . . . . . 1 Extermination Status 1 | . . . . . 1 Reinforcement Status 1 | . . . . . 1 Hauler Manifests 1 | . . . . . 1 Proto ID Catalog 1 | . . . 1 . . Fabricator Hacks . | . . . . . . Repair Station Hacks 2 | . . . . . 2 Scan Component 1 | . . . . . 1 Repair 1 | . . . . . 1 Recycling Unit Hacks . | . . . . . . Scanalyzer . | . . . . . . Garrison Access Hacks 1 | . . . . . 1 Coupler Status 1 | . . . . . 1 Unauthorized Hacks 3 | . 1 . . . 2 Terminals 2 | . 1 . . . 1 Operators 2 | . 1 . . . 1 Fabricators . | . . . . . . Repair Stations . | . . . . . . Recycling Units . | . . . . . . Scanalyzers . | . . . . . . Garrison Access 1 | . . . . . 1 Reprogram 1 | . . . . . 1 Data Cores Recovered . | . . . . . . Used . | . . . . . . Hacking Detections 12 | . 3 1 . . 8 Full Trace Events . | . . . . . . Feedback Events . | . . . . . . Feedback Blocked . | . . . . . . Robot Schematics Acquired . | . . . . . . Robots Built . | . . . . . . Authchips . | . . . . . . Time . | . . . . . . Total Robot Build Rating . | . . . . . . Part Schematics Acquired . | . . . . . . Parts Built . | . . . . . . Authchips . | . . . . . . Time . | . . . . . . Total Part Build Rating . | . . . . . . Parts Repaired 1 | . . . . . 1 Time 26 | . . . . . 26 Parts Recycled . | . . . . . . Recycled Matter . | . . . . . . Retrieved Matter . | . . . . . . Retrieved Components . | . . . . . . Parts Scanalyzed . | . . . . . . Part Schematics Acquired . | . . . . . . Parts Damaged . | . . . . . . Bothacking | -11 -10 -10 -10 -9 -8 ------------ Run | Yrd Mat Min Exi Min Mat Used RIF Installer . | . . . . . . Robots Hacked . | . . . . . . Non-combat . | . . . . . . Combat . | . . . . . . Robot Hacks Applied . | . . . . . . Relay Couplers Released . | . . . . . . Fabnet Peak Effective % . | . . . . . . Robots Rewired . | . . . . . . Allies Hacked . | . . . . . . Hacks Repelled . | . . . . . . Allies | -11 -10 -10 -10 -9 -8 -------- Run | Yrd Mat Min Exi Min Mat Total Allies 5 | . . 3 . . 2 Largest Group 3 | . . 3 3 3 2 Highest-Rated Group 40 | . . 40 40 40 28 Highest-Rated Ally 18 | . . 16 16 16 18 Total Orders . | . . . . . . Ally Attacks 45 | . . 14 . 20 11 Total Damage 614 | . . 162 . 191 261 Kills 10 | . . 2 . 6 2 Allies Corrupted . | . . . . . . Allies Melted . | . . . . . . Intel | -11 -10 -10 -10 -9 -8 ------- Run | Yrd Mat Min Exi Min Mat Active Infowar (turns) . | . . . . . . Robot Analysis Total . | . . . . . . Derelict Logs Recovered 2 | . . 2 . . . Drone Launches . | . . . . . . Drone Recoveries . | . . . . . . Exploration | -11 -10 -10 -10 -9 -8 ------------- Run | Yrd Mat Min Exi Min Mat Turns Passed 4571 | 49 853 520 563 413 2173 Spaces Moved 2668 | 38 600 373 351 223 1083 Core 38 | 13 . . . . 25 Treads 1027 | . . 32 351 223 421 Legs 1603 | 25 600 341 . . 637 Wheels . | . . . . . . Hover . | . . . . . . Flight . | . . . . . . Fastest Speed 50 | 50 120 120 160 160 50 Average Speed 139 | 96 120 123 160 160 146 Slowest Speed 350 | 120 120 160 160 160 350 Overloaded Moves . | . . . . . . Propulsion Burnouts . | . . . . . . Robots Hopped . | . . . . . . Potential Cave-ins . | . . . . . . Cave-ins Triggered . | . . . . . . Exploration Rate (%) 57 | 3 76 91 62 40 74 Regions Visited 5 Branch Regions 3 Pre-discovered Areas 2 | . . 1 1 . . Known Exits Taken 1 | . 1 . . . . Unknown Exits Taken 4 | 1 . 1 1 1 . Scrap Searched 2 | . . 1 . 1 . Spaces Dug . | . . . . . . Terrain Destroyed 267 | . . 11 . 15 241 Melee . | . . . . . . Projectile 2 | . . . . . 2 AOE 265 | . . 11 . 15 239 Terrain Rammed . | . . . . . . Walls Destroyed . | . . . . . . Machines Disabled . | . . . . . . Actions | -11 -10 -10 -10 -9 -8 --------- Run | Yrd Mat Min Exi Min Mat Total 3183 | 49 663 406 353 269 1443 Wait 221 | . 14 11 . 39 157 Move 2663 | 37 599 372 350 222 1083 Hop . | . . . . . . Pick Up 32 | 6 8 2 1 . 15 Fast Attach 20 | 2 1 . . . 17 Attach 23 | 4 1 1 . . 17 Detach 4 | . . . . . 4 Swap 18 | . 1 2 1 . 14 Drop 19 | . 1 3 1 . 14 Fire 143 | . 35 14 . 8 86 Melee 33 | . . . . . 33 Ram . | . . . . . . Kick 6 | . 3 1 . . 2 Crush 1 | . . . . . 1 Escape Stasis . | . . . . . . Rewire . | . . . . . . Trap . | . . . . . . Miscellaneous . | . . . . . . Route ------- -11/Scrapyard -10/Materials (discovered 5 exits: [*Mat x2] / *Min x2 / *Sub) -10/Mines (discovered 4 exits: [*Mat x2] / *Exi / Sub) -10/Exiles -9/Mines -8/Materials (discovered 2 exits: [*Fac x2]) History --------- Turn | Location | Event 7 | -11/Scrapyard | Discovered new exit (range 16) 50 | -11/Scrapyard | Entered Materials 153 | -10/Materials | Discovered new exit (range 14) 177 | -10/Materials | Discovered new exit (range 10) 219 | -10/Materials | Identified exit to Mines 229 | -10/Materials | Discovered new exit (range 5) 317 | -10/Materials | Build established: Mutant 517 | -10/Materials | Discovered new exit (range 16) 903 | -10/Materials | Entered Mines 904 | -10/Mines | Learned location of Storage (-7) 906 | -10/Mines | Met a Derelict bent on vengeance 966 | -10/Mines | Identified exit to Subcaves 1147 | -10/Mines | Discovered new exit (range 9) 1222 | -10/Mines | Core integrity fell below 50% 1271 | -10/Mines | Assisted by bots powering up and referring to "LRC-V3" 1329 | -10/Mines | Discovered new exit (range 7) 1337 | -10/Mines | Learned Materials emergency access door positions 1417 | -10/Mines | Deemed a non-threat by the Exiles lab entrance 1417 | -10/Mines | Discovered new exit (range 5) 1423 | -10/Mines | Entered Exiles 1423 | -10/Exiles | Accompanied by 3 allies 1462 | -10/Exiles | Met 8R-AWN 1491 | -10/Exiles | Met EX-HEX 1537 | -10/Exiles | Met EX-BIN 1560 | -10/Exiles | Aligned with FarCom system 1561 | -10/Exiles | Given EX-Vault access code 1598 | -10/Exiles | Opened EX-Vault 1609 | -10/Exiles | Found YOLO Cannon 1652 | -10/Exiles | Warned to stay clear of 0b10 Research branches 1700 | -10/Exiles | Met EX-DEC 1844 | -10/Exiles | Discovered new exit (range 14) 1924 | -10/Exiles | Learned location of Zion (-6) 1986 | -10/Exiles | Left Exiles lab with YOLO Cannon 1986 | -10/Exiles | Entered Mines 1986 | -9/Mines | Accompanied by 3 allies 2039 | -9/Mines | Assembled infested the area 2210 | -9/Mines | Found a damaged Exp. Sensor Array with a note attached 2326 | -9/Mines | Discovered new exit (range 10) 2399 | -9/Mines | Entered Materials 2399 | -8/Materials | Evolved 4 slots: Propulsion x1, Utility x3 2833 | -8/Materials | Garrison activated, responded to threat 3475 | -8/Materials | Discovered new exit (range 13) 3639 | -8/Materials | Build established: Scavenger-Mutant 3808 | -8/Materials | Repaired Core Shielding 4019 | -8/Materials | Destroyed 8 combat bots 4075 | -8/Materials | Discovered new exit (range 16) 4299 | -8/Materials | Core integrity fell below 50% 4399 | -8/Materials | First assault squad dispatched 4537 | -8/Materials | Core integrity fell below 20% 4572 | -8/Materials | Lost 8 parts (1p1n3u3w) 4572 | -8/Materials | Destroyed by G-47 Trooper with Particle Gun Last Messages --------------- U-05 Engineer lays Concrete. Hammer severed. U-05 Engineer lays Concrete. Destroyed Imp. Aluminum Leg. U-05 Engineer lays Concrete. Core Shielding destroyed. U-05 Engineer lays Concrete. Destroyed Imp. Ion Engine. L-31 Rogue destroyed. Destroyed Imp. Ion Engine. L-31 Rogue destroyed. YOLO Cannon destroyed. Destroyed YOLO Cannon. Destroyed Imp. Aluminum Leg. L-31 Rogue destroyed. U-05 Engineer destroyed. Acquired 9 matter. Dropped Deuterium Engine. C-30 ARC bursts open, deploying its payload. G-47 Trooper unfolds itself. Map ----- +----------------------------------------------------+ | | | | | | | | | ?????????????????????????????? | | ?????????????????????????????? | | ?????????????????????????????? | | ?????????????????????????????? | | ?????????????????????????????? | | ?????????????????????????????? | | ?????????????????????????????? | | ?????????????????????????????? | | ?????????????????????????????? | | ?????????????????????????????? | | ?????????????????????????????? | | ????????????????########?????? | | ????????????????# #?????? | | ????????????????# ####### | | ????????????????# ## # | | ???????????????## # [ !# | | ???????????????#" # # | | ???????????????#" /* "# # | | ??????????######" !% "#g # | | ??????????# *% gg # | | ??????????# !% # ! # | | ??????????# ##@ # | | ??????????# T"### # | | ??????????# ""######## | | ??????????# " #??? | | ??????????# """ #??? | | ??????????# " #??? | | ??????????# #??? | | ??????????# #??? | | ??????????# ######## #??? | | ??????????# ##[ # ^ ^ ^#??? | | ??????????# ## ]# #??? | | ??????????# ## ] # #??? | | ??????????# #?? # #??? | | ??????????# #???#+## #??? | | ??????????# ???# #??? | | ??????????# ???# #??? | | ??????????# ???# #??? | | ??????????#" ???# #??? | | ?????+#####%" ??# #??? | | ?????? " ??# ######??? | | ??????? ??# #???????? | | ##### ??# #???????? | | ?# ########? | | ##?????####+###?# # "" #? | | #??????# #?# # ""S =#? | +----------------------------------------------------+ Best States ------------- Heat Dissipation 31 Energy Generation 18 Energy Capacity 275 Matter Stores 300 Matter Capacity 300 Sight Range 16 Terrain Scan Density 10 Armor Coverage 150 Core Shielding 20 Evasion (%) 55 Melee Accuracy 5 Recoil Reduction 2 Offensive Hacking 20 Item Schematics ----------------- None Robot Schematics ------------------ None Fabricated ------------ Nothing Repaired ---------- Core Shielding | 26% | -8/Materials Alien Tech Used ----------------- None Achievements -------------- None Challenges ------------ None Game ------ Seed AssaultInsulationCompactor Manual? 0 Play Time 00:32:45 Cumulative 38.3 hours Start 2025.06.04 @ 20:14:58 End 2025.06.04 @ 20:45:48 Sessions 1 Manual Loads 0 Difficulty Rogue Special Mode None Game No. 38 Rogue 38 Adventurer 0 Explorer 0 Win Type - Total 0 Types 0/0/0/0/0/0/0/0/0/0 Lore% 24 Gallery% 32 Achievement% 37 Wizard Run 0 Options --------- Layout 1 ASCII 0 Keyboard 0 Movement Mouse Keybinds 0 Fullscreen 1 Font 24/Smallcaps Map View 50x35 Zoom Use 0% Tactical HUD 0 Map Filters NONE Filters NONE Steam 1 RUN: ea2fd951-c6e2-44ce-a619-97f77b7dcb82